fUST/lending_fUST_20251121
["ID","MTS","AMOUNT","RATE_DAILY","PERIOD"]
[394562367,1763713838128,-500.0,9.173e-05,2]
[394562368,1763713838138,-500.0,9.173e-05,2]
[394562369,1763713838147,-500.0,9.173e-05,2]
[394562370,1763713838157,-500.0,9.173e-05,2]
[394562371,1763713838167,-500.0,9.173e-05,2]
[394562372,1763713838176,-500.0,9.173e-05,2]
[394562373,1763713838185,-500.0,9.173e-05,2]
[394562374,1763713838196,-500.0,9.173e-05,2]
[394562375,1763713838207,-500.0,9.173e-05,2]
[394562376,1763713838217,-500.0,9.173e-05,2]
[394562377,1763713838227,-500.0,9.173e-05,2]
[394562378,1763713838237,-500.0,9.173e-05,2]
[394562379,1763713838246,-500.0,9.173e-05,2]
[394562381,1763713838256,-500.0,9.173e-05,2]
[394562383,1763713838267,-500.0,9.173e-05,2]
[394562384,1763713838277,-494.64784084,9.173e-05,2]
[394562388,1763713838568,-5.35215916,9.173e-05,2]
[394562390,1763713838578,-500.0,9.173e-05,2]
[394562392,1763713838590,-500.0,9.173e-05,2]
[394562393,1763713838600,-500.0,9.173e-05,2]
[394562395,1763713838609,-500.0,9.173e-05,2]
[394562396,1763713838619,-500.0,9.173e-05,2]
[394562398,1763713838629,-500.0,9.173e-05,2]
[394562399,1763713838638,-500.0,9.173e-05,2]
[394562401,1763713838647,-500.0,9.173e-05,2]
[394562402,1763713838657,-500.0,9.173e-05,2]
[394562404,1763713838666,-500.0,9.173e-05,2]
[394562405,1763713838676,-500.0,9.173e-05,2]
[394562407,1763713838686,-500.0,9.173e-05,2]
[394562408,1763713838697,-500.0,9.173e-05,2]
[394562410,1763713838707,-500.0,9.173e-05,2]
[394562411,1763713838716,-500.0,9.173e-05,2]
[394562413,1763713838726,-500.0,9.173e-05,2]
[394562414,1763713838735,-467.39990385,9.173e-05,2]
[394562416,1763713838744,-500.0,9.173e-05,2]
[394562417,1763713838753,-500.0,9.173e-05,2]
[394562419,1763713838763,-500.0,9.173e-05,2]
[394562420,1763713838774,-500.0,9.173e-05,2]
[394562422,1763713838784,-500.0,9.173e-05,2]
[394562423,1763713838793,-500.0,9.173e-05,2]
[394562425,1763713838802,-500.0,9.173e-05,2]
[394562426,1763713838812,-500.0,9.173e-05,2]
[394562428,1763713838821,-500.0,9.173e-05,2]
[394562429,1763713838830,-500.0,9.173e-05,2]
[394562431,1763713838840,-500.0,9.173e-05,2]
[394562433,1763713838849,-500.0,9.173e-05,2]
[394562434,1763713838858,-500.0,9.173e-05,2]
[394562436,1763713838868,-500.0,9.173e-05,2]
[394562438,1763713838879,-273.3699952,9.173e-05,2]
[394562439,1763713838889,-500.0,9.173e-05,2]
[394562441,1763713838898,-500.0,9.173e-05,2]
[394562442,1763713838907,-500.0,9.173e-05,2]
[394562444,1763713838918,-500.0,9.173e-05,2]
[394562445,1763713838927,-500.0,9.173e-05,2]
[394562447,1763713838936,-500.0,9.173e-05,2]
[394562449,1763713838946,-500.0,9.173e-05,2]
[394562450,1763713838954,-500.0,9.173e-05,2]
[394562452,1763713838963,-500.0,9.173e-05,2]
[394562453,1763713838972,-507.70380554,9.173e-05,2]
[394562455,1763713838981,-507.70380554,9.173e-05,2]
[394562457,1763713838991,-507.70380554,9.173e-05,2]
[394562458,1763713839000,-507.70380554,9.173e-05,2]
[394562460,1763713839009,-507.70380554,9.173e-05,2]
[394562461,1763713839019,-507.70380554,9.173e-05,2]
[394562463,1763713839028,-507.70380554,9.173e-05,2]
[394562465,1763713839038,-507.70380554,9.173e-05,2]
[394562466,1763713839047,-507.70380554,9.173e-05,2]
[394562468,1763713839057,-507.70380554,9.173e-05,2]
[394562469,1763713839066,-507.70380554,9.173e-05,2]
[394562471,1763713839075,-507.70380554,9.173e-05,2]
[394562472,1763713839084,-507.70380554,9.173e-05,2]
[394562474,1763713839094,-507.70380554,9.173e-05,2]
[394562476,1763713839106,-507.70380554,9.173e-05,2]
[394562477,1763713839116,-507.70380554,9.173e-05,2]
[394562479,1763713839126,-507.70380554,9.173e-05,2]
[394562480,1763713839135,-507.70380558,9.173e-05,2]
[394562482,1763713839145,-930.0,9.173e-05,2]
[394562484,1763713839156,-500.0,9.447e-05,2]
[394562485,1763713839167,-300.0,9.463e-05,2]
[394562487,1763713839177,-300.0,9.463e-05,2]
[394562489,1763713839187,-300.0,9.463e-05,2]
[394562490,1763713839199,-300.0,9.463e-05,2]
[394562492,1763713839209,-300.0,9.463e-05,2]
[394562494,1763713839219,-300.0,9.463e-05,2]
[394562495,1763713839229,-300.0,9.463e-05,2]
[394562497,1763713839239,-300.0,9.463e-05,2]
[394562498,1763713839249,-300.0,9.463e-05,2]
[394562500,1763713839259,-300.0,9.463e-05,2]
[394562502,1763713839269,-300.0,9.463e-05,2]
[394562503,1763713839279,-300.0,9.463e-05,2]
[394562505,1763713839289,-300.0,9.463e-05,2]
[394562506,1763713839299,-300.0,9.463e-05,2]
[394562508,1763713839309,-300.0,9.463e-05,2]
[394562510,1763713839319,-600.0,9.463e-05,2]
[394562511,1763713839329,-500.0,9.721e-05,2]
[394562513,1763713839339,-474.68806802,9.995e-05,2]
[394562515,1763713839349,-209.40437684,0.0001,2]
[394562516,1763713839359,-337.233982,0.00010039,2]
[394562518,1763713839368,-1680.0,0.00010089,2]
[394562519,1763713839378,-720.0,0.00010409,2]
[394562521,1763713839387,-217.15233878,0.00010548,2]
[394562523,1763713839396,-358.0125339,0.0001055,2]
[394562524,1763713839405,-242.83572128,0.00010774,2]
[394562526,1763713839415,-500.0,0.00010958,2]
[394562527,1763713839424,-524.34758217,0.00010959,2]
[394562529,1763713839433,-524.34758217,0.00010959,2]
[394562531,1763713839442,-524.34758217,0.00010959,2]
[394562532,1763713839453,-524.34758217,0.00010959,2]
[394562534,1763713839462,-524.34758217,0.00010959,2]
[394562535,1763713839471,-524.34758217,0.00010959,2]
[394562537,1763713839481,-524.34758217,0.00010959,2]
[394562539,1763713839491,-534.83453382,0.00010959,2]
[394562540,1763713839500,-534.83453382,0.00010959,2]
[394562542,1763713839514,-534.83453382,0.00010959,2]
[394562543,1763713839523,-534.83453382,0.00010959,2]
[394562545,1763713839542,-534.83453382,0.00010959,2]
[394562547,1763713839554,-534.83453382,0.00010959,2]
[394562548,1763713839564,-534.83453382,0.00010959,2]
[394562550,1763713839573,-534.83453382,0.00010959,2]
[394562552,1763713839582,-534.83453382,0.00010959,2]
[394562553,1763713839592,-534.83453382,0.00010959,2]
[394562555,1763713839601,-549.69104865,0.00010959,2]
[394562557,1763713839611,-549.69104865,0.00010959,2]
[394562558,1763713839620,-549.69104865,0.00010959,2]
[394562560,1763713839629,-549.69104865,0.00010959,2]
[394562561,1763713839639,-604.66015351,0.00010959,2]
[394562563,1763713839648,-604.66015351,0.00010959,2]
[394562565,1763713839658,-604.66015351,0.00010959,2]
[394562566,1763713839668,-647.09706908,0.00010959,2]
[394562568,1763713839677,-647.09706908,0.00010959,2]
[394562570,1763713839686,-225.18697532,0.00011096,2]
[394562571,1763713839697,-358.0125339,0.00011103,2]
[394562573,1763713839706,-864.0,0.0001145,2]
[394562574,1763713839715,-233.51889341,0.00011644,2]
[394562576,1763713839724,-358.0125339,0.00011655,2]
[394562578,1763713839733,-500.0,0.00012054,2]
[394562579,1763713839743,-414.0,0.0001216,2]
[394562581,1763713839752,-242.15909246,0.00012192,2]
[394562582,1763713839761,-358.0125339,0.00012208,2]
[394562584,1763713839771,-353.13058887,0.0001236,2]
[394562586,1763713839780,-1000.0,0.00012595,2]
[394562587,1763713839789,-251.11897888,0.0001274,2]
[394562589,1763713839799,-358.37054644,0.0001276,2]
[394562591,1763713839808,-279.87845842,0.00012774,2]
[394562592,1763713839819,-7742.80260073,0.000129,2]
[394562594,1763713839829,-500.0,0.0001315,2]
[394562595,1763713839838,-337.233982,0.00013159,2]
[394562597,1763713839847,-7742.8026007,0.00013213,2]
[394562599,1763713839857,-260.4103811,0.00013288,2]
[394562600,1763713839867,-500.0,0.00013698,2]
[394562602,1763713839876,-1000.0,0.00013699,2]
[394562603,1763713839885,-675.362042,0.00013699,2]
[394562605,1763713839895,-160.0,0.00013699,2]
[394562607,1763713839905,-300.0,0.00013699,2]
[394562608,1763713839915,-270.0455652,0.00013836,2]
[394562610,1763713839925,-1000.0,0.00013855,2]
[394562611,1763713839935,-244.0,0.00013855,2]
[394562613,1763713839944,-337.233982,0.00014,3]
[394562615,1763713839958,-500.0,0.00014246,2]
[394562616,1763713839966,-260.0,0.00014247,2]
[394562618,1763713839976,-2959.31633638,0.0001431,2]
[394562619,1763713839986,-32054.44757551,0.00014312,2]
[394562621,1763713840000,-610.84667292,0.00014312,2]
[394562623,1763713840011,-772.18464868,0.00014312,2]
[394562655,1763713840771,-11215.08179189,0.00014312,2]
[394562656,1763713840782,-280.03725112,0.00014384,2]
[394562657,1763713840791,-172.9818,0.00014384,2]
[394562658,1763713840801,-2231.41771948,0.00014394,2]
[394562659,1763713840810,-500.0,0.0001469,2]
[394562660,1763713840820,-1002.36677994,0.0001469,2]
[394562661,1763713840829,-316.92119556,0.00014774,2]
[394562662,1763713840837,-360.0,0.00014795,2]
[394562663,1763713840846,-301.24620035,0.000149,2]
[394562664,1763713840856,-301.24620033,0.000149,2]
[394562665,1763713840865,-290.39862941,0.00014932,2]
[394562666,1763713840874,-500.0,0.00014938,2]
[394562667,1763713841067,-174.747517,0.00015068,2]
[394562668,1763713841077,-800.0,0.00015068,2]
[394562669,1763713841087,-414.0,0.0001516,2]
[394562670,1763713841097,-1000.0,0.00015241,2]
[394562671,1763713841108,-492.0,0.00015241,2]
[394562672,1763713841119,-500.0,0.00015284,2]
[394562673,1763713841128,-500.0,0.00015284,2]
[394562674,1763713841138,-500.0,0.00015284,2]
[394562675,1763713841147,-500.0,0.00015284,2]
[394562676,1763713841156,-250.0,0.00015284,2]
[394562678,1763713841166,-500.0,0.00015284,2]
[394562679,1763713841175,-250.0,0.00015284,2]
[394562680,1763713841184,-500.0,0.00015284,2]
[394562681,1763713841196,-250.0,0.00015284,2]
[394562683,1763713841206,-500.0,0.00015284,2]
[394562684,1763713841216,-250.0,0.00015284,2]
[394562685,1763713841225,-243.17747271,0.00015284,2]
[394562686,1763713841235,-250.0,0.00015284,2]
[394562687,1763713841244,-250.0,0.00015284,2]
[394562688,1763713841253,-250.0,0.00015284,2]
[394562690,1763713841263,-250.0,0.00015284,2]
[394562691,1763713841272,-250.0,0.00015284,2]
[394562692,1763713841282,-250.0,0.00015284,2]
[394562693,1763713841292,-758.0,0.00015286,2]
[394562694,1763713841301,-189.123687,0.0001532,2]
[394562695,1763713841311,-189.123687,0.0001532,2]
[394562696,1763713841321,-189.123687,0.0001532,2]
[394562697,1763713841330,-189.123687,0.0001532,2]
[394562698,1763713841340,-151.0,0.0001532,2]
[394562699,1763713841351,-151.0,0.0001532,2]
[394562700,1763713841360,-500.0,0.00015342,2]
[394562701,1763713841369,-460.0,0.00015342,2]
[394562702,1763713841379,-246.64,0.00015378,2]
[394562703,1763713841388,-758.0,0.00015387,2]
[394562704,1763713841398,-301.1433787,0.0001548,2]
[394562706,1763713841407,-337.233982,0.0001555,3]
[394562708,1763713841417,-758.0,0.0001558,2]
[394562710,1763713841429,-758.0,0.0001559,2]
[394562712,1763713841439,-758.0,0.00015595,2]
[394562714,1763713841450,-758.0,0.00015597,2]
[394562716,1763713841459,-220.03643772,0.00015652,2]
[394562718,1763713841469,-758.0,0.00015653,2]
[394562720,1763713841478,-758.0,0.00015686,2]
[394562722,1763713841488,-758.0,0.00015772,2]
[394562724,1763713841497,-758.0,0.00015782,2]
[394562726,1763713841507,-758.0,0.00015819,2]
[394562728,1763713841519,-758.0,0.00015876,2]
[394562730,1763713841528,-560.0,0.0001589,2]
[394562732,1763713841537,-45231.82889578,0.0001599,2]
[394562757,1763713846033,-500.0,0.00010958,2]
[394562758,1763713846043,-500.0,0.00012054,2]
[394562759,1763713846053,-500.0,0.0001315,2]
[394562760,1763713846062,-500.0,0.00014246,2]
[394562761,1763713846072,-500.0,0.00015342,2]
[394562762,1763713846082,-758.0,0.00015717,2]
[394562763,1763713846091,-54768.17110422,0.0001599,2]
[394562764,1763713846101,-758.0,0.00016093,2]
[394562765,1763713846111,-758.0,0.00016146,2]
[394562766,1763713846120,-169.440286,0.0001616,3]
[394562768,1763713846130,-758.0,0.00016222,2]
[394562770,1763713846139,-337.233982,0.0001628,2]
[394562771,1763713846148,-758.0,0.00016328,2]
[394562773,1763713846158,-10000.0,0.00016338,2]
[394562775,1763713846167,-758.0,0.00016351,2]
[394562777,1763713846176,-758.0,0.00016368,2]
[394562778,1763713846186,-758.0,0.00016403,2]
[394562779,1763713846195,-204.57396776,0.00016437,2]
[394562780,1763713846208,-189.123687,0.00016438,2]
[394562781,1763713846217,-189.123687,0.00016438,2]
[394562782,1763713846227,-189.123687,0.00016438,2]
[394562783,1763713846237,-189.123687,0.00016438,2]
[394562784,1763713846246,-189.123687,0.00016438,2]
[394562785,1763713846255,-189.123687,0.00016438,2]
[394562786,1763713846265,-189.123687,0.00016438,2]
[394562787,1763713846274,-189.123687,0.00016438,2]
[394562788,1763713846284,-189.123687,0.00016438,2]
[394562789,1763713846294,-189.123687,0.00016438,2]
[394562790,1763713846303,-189.123687,0.00016438,2]
[394562791,1763713846313,-189.123687,0.00016438,2]
[394562792,1763713846322,-189.123687,0.00016438,2]
[394562793,1763713846331,-189.123687,0.00016438,2]
[394562794,1763713846341,-189.123687,0.00016438,2]
[394562795,1763713846350,-189.123691,0.00016438,2]
[394562796,1763713846359,-151.0,0.00016438,2]
[394562798,1763713846369,-151.0,0.00016438,2]
[394562799,1763713846378,-151.0,0.00016438,2]
[394562800,1763713846601,-151.0,0.00016438,2]
[394562801,1763713846611,-192.591164,0.00016438,2]
[394562802,1763713846621,-500.0,0.00016438,2]
[394562803,1763713846631,-500.0,0.00016438,2]
[394562805,1763713846640,-500.0,0.00016438,2]
[394562806,1763713846650,-500.0,0.00016438,2]
[394562807,1763713846660,-500.0,0.00016438,2]
[394562808,1763713846669,-500.0,0.00016438,2]
[394562809,1763713846678,-500.0,0.00016438,2]
[394562810,1763713846688,-500.0,0.00016438,2]
[394562811,1763713846698,-196.34360991,0.00016438,2]
[394562812,1763713846707,-500.0,0.00016438,2]
[394562813,1763713846717,-500.0,0.00016438,2]
[394562814,1763713846726,-500.0,0.00016438,2]
[394562815,1763713846736,-500.0,0.00016438,2]
[394562816,1763713846745,-500.0,0.00016438,2]
[394562817,1763713846755,-165.70254455,0.00016438,2]
[394562818,1763713846768,-334.29745545,0.00016438,2]
[394562819,1763713846777,-140.99784285,0.00016438,2]
[394562821,1763713847317,-359.00215715,0.00016438,2]
[394562822,1763713847327,-500.0,0.00016438,2]
[394562823,1763713847337,-500.0,0.00016438,2]
[394562824,1763713847347,-500.0,0.00016438,2]
[394562825,1763713847357,-500.0,0.00016438,2]
[394562826,1763713847366,-500.0,0.00016438,2]
[394562827,1763713847376,-500.0,0.00016438,2]
[394562828,1763713847386,-500.0,0.00016438,2]
[394562829,1763713847396,-382.76216216,0.00016438,2]
[394562851,1763714618179,877.86,0.00025279,120]
[394562859,1763714810977,5000.0,8e-05,3]
[394562860,1763714817155,-223.02823501,7.333e-05,2]
[394562861,1763714818690,1615.55897453,8e-05,3]
[394562862,1763714827085,-97.04624585,7.333e-05,2]
[394562863,1763714827107,-357.03545734,7.333e-05,2]
[394562864,1763714827125,-200.0,7.35e-05,2]
[394562865,1763714827146,-187.88441694,7.7e-05,2]
[394562866,1763714827165,-363.31640597,8.137e-05,2]
[394562867,1763714827186,-178.4844413,8.139e-05,2]
[394562868,1763714827208,-300.0,9.066e-05,2]
[394562869,1763714827229,-181.54381813,9.067e-05,2]
[394562870,1763714827250,-643.81312892,9.067e-05,2]
[394562871,1763714827272,-500.0,9.067e-05,2]
[394562872,1763714827297,-500.0,9.067e-05,2]
[394562873,1763714827319,-319.11894634,9.067e-05,2]
[394562874,1763714848078,-454.08170319,7.187e-05,2]
[394562875,1763714848099,-266.32383218,7.26e-05,2]
[394562876,1763714971080,-258.30753261,7.016e-05,2]
[394562877,1763714971101,-2356.24465122,7.087e-05,2]
[394562878,1763714971123,-187.75787101,7.187e-05,2]
[394562879,1763714971143,-187.75787101,7.26e-05,2]
[394562880,1763714971163,-42.15657538,7.7e-05,2]
[394562920,1763715032736,-150.57792692,7.547e-05,2]
[394562921,1763715032745,-150.57792692,7.623e-05,2]
[394562922,1763715032754,-6.94344615,7.7e-05,2]
[394562923,1763715032765,-143.63448077,7.7e-05,2]
[394562924,1763715032775,-455.25728239,8.265e-05,2]
[394562925,1763715032783,-300.0,9.065e-05,2]
[394562926,1763715032792,-300.0,9.065e-05,2]
[394562928,1763715032801,-300.0,9.065e-05,2]
[394562930,1763715032810,-1200.0,9.065e-05,2]
[394562932,1763715032819,-500.0,9.066e-05,2]
[394562935,1763715032828,-500.0,9.066e-05,2]
[394562937,1763715032837,-6.14852167,9.066e-05,2]
[394562938,1763715032848,-493.85147833,9.066e-05,2]
[394562939,1763715032857,-500.0,9.066e-05,2]
[394562940,1763715032867,-473.13166604,9.066e-05,2]
[394562941,1763715032881,-26.86833396,9.066e-05,2]
[394562942,1763715032890,-500.0,9.066e-05,2]
[394562943,1763715032898,-327.11166504,9.066e-05,2]
[394562944,1763715032912,-121.50648445,9.066e-05,2]
[394562945,1763715032922,-304.83452138,9.066e-05,2]
[394563009,1763715038501,-450.66919025,9.065e-05,2]
[394563011,1763715038511,-438.95080975,9.066e-05,2]
[394563016,1763715038553,-596.04919025,9.066e-05,2]
[394563018,1763715038563,-525.31193198,9.067e-05,2]
[394563020,1763715038573,-774.21113858,9.073e-05,2]
[394563022,1763715038582,-227.42671271,9.7e-05,2]
[394563024,1763715038592,-420.0,9.971e-05,2]
[394563026,1763715038602,-1200.0,9.971e-05,2]
[394563028,1763715038611,-209.40437684,0.0001,2]
[394563031,1763715038622,-300.409225,0.00010039,2]
[394563033,1763715038631,-217.15233878,0.00010548,2]
[394563035,1763715038641,-500.0,0.00010958,2]
[394563037,1763715038651,-999.0,0.00010959,2]
[394563039,1763715038660,-500.0,0.00010959,2]
[394563041,1763715038672,-500.0,0.00010959,2]
[394563043,1763715038681,-500.0,0.00010959,2]
[394563045,1763715038690,-500.0,0.00010959,2]
[394563046,1763715038700,-500.0,0.00010959,2]
[394563049,1763715038710,-49.23410428,0.00010959,2]
[394563052,1763715038736,-314.4785267,0.00010959,2]
[394563199,1763715040970,-136.28736902,0.00010959,2]
[394563200,1763715040980,-500.0,0.00010959,2]
[394563201,1763715040990,-500.0,0.00010959,2]
[394563202,1763715040999,-500.0,0.00010959,2]
[394563203,1763715041009,-500.0,0.00010959,2]
[394563204,1763715041019,-500.0,0.00010959,2]
[394563205,1763715041028,-500.0,0.00010959,2]
[394563206,1763715041038,-500.0,0.00010959,2]
[394563207,1763715041047,-500.0,0.00010959,2]
[394563208,1763715041058,-500.0,0.00010959,2]
[394563209,1763715041067,-500.0,0.00010959,2]
[394563210,1763715041076,-500.0,0.00010959,2]
[394563211,1763715041086,-217.67250161,0.00010964,2]
[394563212,1763715041095,-225.18697532,0.00011096,2]
[394563213,1763715041104,-233.51889341,0.00011644,2]
[394563214,1763715041114,-262.11892312,0.000117,2]
[394563215,1763715041124,-500.0,0.00012054,2]
[394563216,1763715041134,-242.15909246,0.00012192,2]
[394563217,1763715041143,-251.11897888,0.0001274,2]
[394563218,1763715041152,-5872.60195056,0.000129,2]
[394563219,1763715041162,-5872.60195052,0.00013119,2]
[394563220,1763715041174,-300.409225,0.00013129,2]
[394563221,1763715041183,-159.62414144,0.00013141,2]
[394563222,1763715041192,-500.0,0.0001315,2]
[394563223,1763715041202,-260.4103811,0.00013288,2]
[394563224,1763715041210,-353.13058887,0.00013657,2]
[394563225,1763715041220,-500.0,0.00013698,2]
[394563226,1763715041229,-500.0,0.00013698,2]
[394563227,1763715041238,-500.0,0.00013698,2]
[394563228,1763715041248,-500.0,0.00013698,2]
[394563229,1763715041257,-500.0,0.00013698,2]
[394563230,1763715041267,-500.0,0.00013698,2]
[394563231,1763715041276,-500.0,0.00013698,2]
[394563232,1763715041286,-500.0,0.00013698,2]
[394563233,1763715041295,-500.0,0.00013698,2]
[394563234,1763715041305,-500.0,0.00013698,2]
[394563235,1763715041315,-500.0,0.00013698,2]
[394563236,1763715041324,-500.0,0.00013698,2]
[394563237,1763715041333,-500.0,0.00013698,2]
[394563238,1763715041343,-500.0,0.00013698,2]
[394563239,1763715041352,-286.01183776,0.00013698,2]
[394563240,1763715041363,-160.0,0.00013699,2]
[394563241,1763715041372,-204.9726,0.00013699,2]
[394563242,1763715041381,-296.81113354,0.000137,2]
[394563243,1763715041391,-270.0455652,0.00013836,2]
[394563244,1763715041401,-2111.0732371,0.00013904,2]
[394563245,1763715041411,-159.45125689,0.0001397,2]
[394563246,1763715041424,-600.0,0.00013971,2]
[394563247,1763715041433,-300.409225,0.00014,3]
[394563248,1763715041442,-500.0,0.00014246,2]
[394563249,1763715041451,-260.0,0.00014247,2]
[394563250,1763715041460,-280.03725112,0.00014384,2]
[394563252,1763715041469,-455.25728239,0.00014458,2]
[394563253,1763715041480,-360.0,0.00014795,2]
[394563254,1763715041490,-301.24620033,0.000149,2]
[394563255,1763715041500,-290.39862941,0.00014932,2]
[394563256,1763715041509,-177.85702744,0.00015068,2]
[394563258,1763715041519,-500.0,0.00015342,2]
[394563259,1763715041528,-460.0,0.00015342,2]
[394563261,1763715041538,-720.0,0.00015368,2]
[394563262,1763715041548,-300.409225,0.00015377,7]
[394563263,1763715041558,-300.409225,0.00015395,3]
[394563264,1763715041567,-301.1433787,0.0001548,2]
[394563265,1763715041576,-481.0,0.00015652,2]
[394563266,1763715041585,-151.0,0.00015652,2]
[394563267,1763715041596,-151.0,0.00015652,2]
[394563268,1763715041606,-169.440286,0.00015664,3]
[394563270,1763715041616,-331.50334395,0.000157,2]
[394563271,1763715041625,-481.0,0.00015789,2]
[394563273,1763715041635,-151.0,0.00015789,2]
[394563275,1763715041644,-560.0,0.0001589,2]
[394563277,1763715041654,-481.0,0.00015926,2]
[394563278,1763715041663,-198.0,0.00015926,2]
[394563279,1763715041677,-197.312,0.00015979,2]
[394563280,1763715041686,-13856.37986199,0.0001599,2]
[394563281,1763715041698,-4926.51814271,0.0001599,2]
[394563285,1763715041724,-29610.98287455,0.0001599,2]
[394563346,1763715045394,-450.66919025,8.974e-05,2]
[394563347,1763715045403,-117.77407092,0.0001276,2]
[394563348,1763715045415,-240.23846298,0.0001276,2]
[394563349,1763715045425,-358.0125339,0.00013587,2]
[394563350,1763715045436,-358.0125339,0.00014413,2]
[394563351,1763715045444,-358.0125339,0.00015239,2]
[394563352,1763715045453,-7090.10633532,0.0001599,2]
[394563353,1763715045464,-44516.01278543,0.0001599,2]
[394563354,1763715045473,-237.48657661,0.00015998,2]
[394563355,1763715045482,-481.0,0.00016063,2]
[394563356,1763715045491,-358.37054644,0.00016066,2]
[394563357,1763715045500,-500.0,0.0001615,2]
[394563360,1763715045511,-481.0,0.000162,2]
[394563361,1763715045521,-300.409225,0.0001622,2]
[394563363,1763715045531,-500.0,0.00016263,2]
[394563365,1763715045540,-2252.81941553,0.00016272,2]
[394563366,1763715045549,-2959.31633638,0.00016288,2]
[394563367,1763715045558,-165.0,0.000163,2]
[394563368,1763715045568,-165.0,0.000163,2]
[394563369,1763715045578,-165.0,0.000163,2]
[394563370,1763715045587,-166.0,0.000163,2]
[394563371,1763715045596,-481.0,0.00016337,2]
[394563372,1763715045606,-10000.0,0.00016338,2]
[394563373,1763715045615,-300.409225,0.0001637,7]
[394563374,1763715045623,-500.0,0.00016438,2]
[394563375,1763715045632,-660.0,0.00016438,2]
[394563376,1763715045642,-173.0403125,0.00016438,2]
[394563377,1763715045651,-187.341294,0.00016438,2]
[394563378,1763715045660,-187.341294,0.00016438,2]
[394563379,1763715045670,-151.0,0.00016438,2]
[394563380,1763715045680,-151.0,0.00016438,2]
[394563381,1763715045689,-151.0,0.00016438,2]
[394563382,1763715045699,-187.341294,0.00016438,2]
[394563383,1763715045708,-151.0,0.00016438,2]
[394563384,1763715045717,-187.341294,0.00016438,2]
[394563385,1763715045726,-151.0,0.00016438,2]
[394563386,1763715045735,-151.0,0.00016438,2]
[394563387,1763715045745,-187.341294,0.00016438,2]
[394563388,1763715045755,-151.0,0.00016438,2]
[394563389,1763715045764,-151.0,0.00016438,2]
[394563390,1763715045774,-151.0,0.00016438,2]
[394563391,1763715045783,-187.341294,0.00016438,2]
[394563392,1763715045793,-151.0,0.00016438,2]
[394563393,1763715045802,-187.341294,0.00016438,2]
[394563394,1763715045811,-151.0,0.00016438,2]
[394563395,1763715045821,-187.341294,0.00016438,2]
[394563396,1763715045830,-151.0,0.00016438,2]
[394563397,1763715045840,-187.341294,0.00016438,2]
[394563398,1763715045849,-151.0,0.00016438,2]
[394563399,1763715045858,-187.341294,0.00016438,2]
[394563400,1763715045871,-187.341294,0.00016438,2]
[394563401,1763715045883,-151.0,0.00016438,2]
[394563402,1763715045892,-187.341294,0.00016438,2]
[394563403,1763715045902,-151.0,0.00016438,2]
[394563404,1763715045912,-151.0,0.00016438,2]
[394563405,1763715045921,-187.341294,0.00016438,2]
[394563406,1763715045932,-187.341294,0.00016438,2]
[394563407,1763715045942,-151.0,0.00016438,2]
[394563408,1763715045954,-187.341294,0.00016438,2]
[394563409,1763715045963,-166.5409,0.00016438,2]
[394563410,1763715045973,-187.341294,0.00016438,2]
[394563411,1763715045982,-187.341294,0.00016438,2]
[394563412,1763715045991,-187.341294,0.00016438,2]
[394563413,1763715046001,-187.341294,0.00016438,2]
[394563414,1763715046011,-187.341284,0.00016438,2]
[394563415,1763715046020,-151.0,0.00016438,2]
[394563416,1763715046031,-292.829556,0.00016438,2]
[394563417,1763715046041,-151.0,0.00016438,2]
[394563418,1763715046051,-151.0,0.00016438,2]
[394563419,1763715046060,-151.0,0.00016438,2]